bitfinex/quotes_BTCUSD_20241130
["timestamp","ask_amount","ask_price","bid_price","bid_amount"]
[1733001437858,0.0023861,96980.0,96979.0,0.14066046]
[1733001438069,0.0023861,96980.0,96979.0,0.03754546]
[1733001438913,0.0023861,96980.0,96979.0,0.14066046]
[1733001439131,0.0023861,96980.0,96979.0,0.03754546]
[1733001441099,0.1055001,96980.0,96979.0,0.03754546]
[1733001441555,0.1506001,96980.0,96979.0,0.03754546]
[1733001441768,0.1506001,96980.0,96979.0,0.03246054]
[1733001441969,0.1506001,96980.0,96979.0,0.03729496]
[1733001446371,0.1528924,96980.0,96979.0,0.01429496]
[1733001447228,0.25573761,96980.0,96979.0,0.01429496]
[1733001449571,0.25473761,96980.0,96979.0,0.01429496]
[1733001449813,0.26073761,96980.0,96979.0,0.01529496]
[1733001450016,0.26073761,96980.0,96979.0,0.01329496]
[1733001450230,0.26073761,96980.0,96979.0,0.01429496]
[1733001450853,0.26073761,96980.0,96979.0,0.01329496]
[1733001451745,0.33843761,96980.0,96979.0,0.01329496]
[1733001452937,0.33843761,96980.0,96979.0,0.00846054]
[1733001453152,0.33243761,96980.0,96979.0,0.00746054]
[1733001453370,0.34143761,96980.0,96979.0,0.00846054]
[1733001453817,0.34143761,96980.0,96979.0,0.00746054]
[1733001454002,0.35043761,96980.0,96979.0,0.00846054]
[1733001454249,0.34443761,96980.0,96979.0,0.00746054]
[1733001454483,0.35443761,96980.0,96979.0,0.00746054]
[1733001454706,0.35443761,96980.0,96979.0,0.00846054]
[1733001454707,0.36043761,96980.0,96979.0,0.00846054]
[1733001455215,0.36343761,96980.0,96979.0,0.00846054]
[1733001455689,0.36043761,96980.0,96979.0,0.00846054]
[1733001455919,0.34543761,96980.0,96979.0,0.00746054]
[1733001456131,0.35443761,96980.0,96979.0,0.00746054]
[1733001456405,0.34543761,96980.0,96979.0,0.00746054]
[1733001456648,0.36579596,96980.0,96979.0,0.00746054]
[1733001456922,0.37479596,96980.0,96979.0,0.00746054]
[1733001459779,0.36479596,96980.0,96979.0,0.00746054]
[1733001460745,0.42493761,96980.0,96979.0,0.00746054]
[1733001467193,0.44571456,96980.0,96979.0,0.00746054]
[1733001469040,0.44571456,96980.0,96979.0,0.0008641]
[1733001469574,0.46185545,96980.0,96979.0,0.0008641]
[1733001470925,0.4410785,96980.0,96979.0,0.0008641]
[1733001474933,0.4510785,96980.0,96979.0,0.0008641]
[1733001477369,0.4712132,96980.0,96979.0,0.0008641]
[1733001480878,0.4510785,96980.0,96979.0,0.0008641]
[1733001482869,0.3733785,96980.0,96979.0,0.0008641]
[1733001486466,0.39419689,96980.0,96979.0,0.0008641]
[1733001487764,0.38419689,96980.0,96979.0,0.0008641]
[1733001490926,0.3633785,96980.0,96979.0,0.0008641]
[1733001492761,0.3733785,96980.0,96979.0,0.0008641]
[1733001493766,0.3633785,96980.0,96979.0,0.0008641]
[1733001494100,0.3182785,96980.0,96979.0,0.0008641]
[1733001496777,0.33892765,96980.0,96979.0,0.0008641]
[1733001500789,0.3182785,96980.0,96979.0,0.0008641]
[1733001506901,0.33921376,96980.0,96979.0,0.0008641]
[1733001510852,0.3182785,96980.0,96979.0,0.0008641]
[1733001516101,0.2377785,96980.0,96979.0,0.0008641]
[1733001517372,0.25660514,96980.0,96979.0,0.0461641]
[1733001517582,0.2377785,96980.0,96979.0,0.1275641]
[1733001517812,0.2354862,96980.0,96979.0,0.13132027]
[1733001518017,0.2377785,96980.0,96979.0,0.13132027]
[1733001518456,0.2354862,96980.0,96979.0,0.13132027]
[1733001518685,0.2377785,96980.0,96979.0,0.13132027]
[1733001519148,0.2377785,96980.0,96979.0,0.31693533]
[1733001519356,0.2377785,96980.0,96979.0,0.13905099]
[1733001519783,0.2377785,96980.0,96979.0,0.13132027]
[1733001520003,0.22163761,96980.0,96979.0,0.13132027]
[1733001520501,0.22163761,96980.0,96979.0,0.13905076]
[1733001521159,0.30213761,96980.0,96979.0,0.13905076]
[1733001521581,0.30213761,96980.0,96979.0,0.32450426]
[1733001522257,0.30213761,96980.0,96979.0,0.37106958]
[1733001522465,0.30213761,96980.0,96979.0,0.13905076]
[1733001523600,0.30213761,96980.0,96979.0,0.37076107]
[1733001524382,0.30213761,96980.0,96979.0,0.13905076]
[1733001524980,0.19673131,96980.0,96979.0,0.13905076]
[1733001525199,0.0938861,96980.0,96979.0,0.39376107]
[1733001525414,0.0938861,96980.0,96979.0,0.26516576]
[1733001525634,0.0938861,96980.0,96979.0,0.49679221]
[1733001525860,0.0938861,96980.0,96979.0,0.26516576]
[1733001526076,0.0908861,96980.0,96979.0,0.16205076]
[1733001526296,0.0908861,96980.0,96979.0,0.16305076]
[1733001526514,0.0103861,96980.0,96979.0,0.16305076]
[1733001526729,0.0013861,96980.0,96979.0,0.16205076]
[1733001526954,0.0023861,96980.0,96979.0,0.16205076]
[1733001527173,0.0023861,96980.0,96979.0,0.16405076]
[1733001527384,0.0013861,96980.0,96979.0,0.16405076]
[1733001527611,0.0013861,96980.0,96979.0,0.39560279]
[1733001527860,0.0013861,96980.0,96979.0,0.16405076]
[1733001528526,0.0013861,96980.0,96979.0,0.39556976]
[1733001529613,0.0013861,96980.0,96979.0,0.16405076]
[1733001530260,0.0013861,96980.0,96979.0,0.16614602]
[1733001531522,0.0818861,96980.0,96979.0,0.16614602]
[1733001532152,0.0818861,96980.0,96979.0,0.35130225]
[1733001532636,0.0818861,96980.0,96979.0,0.16614602]
[1733001532866,0.0818861,96980.0,96979.0,0.35128708]
[1733001533268,0.0818861,96980.0,96979.0,0.34928708]
[1733001533478,0.0818861,96980.0,96979.0,0.35028708]
[1733001533931,0.0818861,96980.0,96979.0,0.34928708]
[1733001534173,0.0818861,96980.0,96979.0,0.45240208]
[1733001534819,0.0818861,96980.0,96979.0,0.45440208]
[1733001535262,0.0818861,96980.0,96979.0,0.45640208]
[1733001535730,0.0818861,96980.0,96979.0,0.45440208]
[1733001536173,0.0818861,96980.0,96979.0,0.44667159]
[1733001536425,0.0818861,96980.0,96979.0,0.45438362]
[1733001536653,0.0818861,96980.0,96979.0,0.27124256]
[1733001539099,0.0818861,96980.0,96979.0,0.27124345]
[1733001543499,0.0818861,96980.0,96979.0,0.16812845]
[1733001543704,0.0013861,96980.0,96979.0,0.16812845]
[1733001545677,0.0013861,96980.0,96979.0,0.27124345]
[1733001545890,0.0013861,96980.0,96979.0,0.16812845]
[1733001547408,0.103112,96982.0,96980.0,0.023]
[1733001547629,0.20595721,96982.0,96981.0,0.00771292]
[1733001547857,0.20595721,96982.0,96981.0,0.01319691]
[1733001548504,0.20595721,96982.0,96981.0,0.15201941]
[1733001548720,0.20595721,96982.0,96981.0,0.01319691]
[1733001548932,0.20595721,96982.0,96981.0,0.00548399]
[1733001549155,0.10284521,96982.0,96981.0,0.014215]
[1733001549364,0.20595621,96982.0,96981.0,0.014215]
[1733001550563,0.20595621,96982.0,96981.0,0.1530375]
[1733001550821,0.20595621,96982.0,96981.0,0.1550375]
[1733001552426,0.20595621,96982.0,96981.0,0.14730649]
[1733001552658,0.20595621,96982.0,96981.0,0.15504168]
[1733001553297,0.20595621,96982.0,96981.0,0.15508485]
[1733001553743,0.20595621,96982.0,96981.0,0.01621918]
[1733001556121,0.20595621,96982.0,96981.0,0.01622086]
[1733001556329,0.20595621,96982.0,96981.0,0.00848399]
[1733001556543,0.20595621,96982.0,96981.0,0.20137506]
[1733001557375,0.20682041,96982.0,96981.0,0.20137506]
[1733001557996,0.20682041,96982.0,96981.0,0.01622083]
[1733001559531,0.20682041,96982.0,96981.0,0.24766361]
[1733001560607,0.20682041,96982.0,96981.0,0.01622083]
[1733001568998,0.20682041,96982.0,96981.0,0.01794923]
[1733001570182,0.20682041,96982.0,96981.0,0.01021239]
[1733001570387,0.20682041,96982.0,96981.0,0.29625918]
[1733001572782,0.20682041,96982.0,96981.0,0.01794899]
[1733001573225,0.20682041,96982.0,96981.0,0.29625918]
[1733001573683,0.20682041,96982.0,96981.0,0.28852258]
[1733001573912,0.20682041,96982.0,96981.0,0.29625923]
[1733001575936,0.20682041,96982.0,96981.0,0.01794904]
[1733001577409,0.20682041,96982.0,96981.0,0.01794905]
[1733001577643,0.20682041,96982.0,96981.0,0.01794906]
[1733001581060,0.25252041,96982.0,96981.0,0.01794906]
[1733001581280,0.25252041,96982.0,96981.0,0.01021239]
[1733001581697,0.25252041,96982.0,96981.0,0.01794885]
[1733001582111,0.25252041,96982.0,96981.0,0.01021239]
[1733001582326,0.20682041,96982.0,96981.0,0.01021239]
[1733001582940,0.25412041,96982.0,96981.0,0.01021239]
[1733001593922,0.25412041,96982.0,96981.0,0.0047284]
[1733001594136,0.25412041,96982.0,96981.0,0.00926697]
[1733001594835,0.25412041,96982.0,96981.0,0.0047284]
[1733001596544,0.20682041,96982.0,96981.0,0.0047284]
[1733001596780,0.20682041,96982.0,96981.0,0.00926688]
[1733001599707,0.20682041,96982.0,96981.0,0.0047284]
[1733001599852,0.20682041,96982.0,96981.0,0.23571766]
[1733001600052,0.21082041,96982.0,96981.0,0.23371766]
[1733001600256,0.21082041,96982.0,96981.0,0.00626561]
[1733001600676,0.21082041,96982.0,96981.0,0.0017284]
[1733001601048,0.21082041,96982.0,96981.0,0.23371786]
[1733001601467,0.25662041,96982.0,96981.0,0.23825503]
[1733001601669,0.25662041,96982.0,96981.0,0.00604657]
[1733001601877,0.25662041,96982.0,96981.0,0.14524665]
[1733001602081,0.25662041,96982.0,96981.0,0.00604657]
[1733001610859,0.27749533,96982.0,96981.0,0.00604657]
[1733001616266,0.25662041,96982.0,96981.0,0.00604657]
[1733001620261,0.21082041,96982.0,96981.0,0.00604657]
[1733001620982,0.21082041,96982.0,96981.0,0.13514657]
[1733001621241,0.21082041,96982.0,96981.0,0.32063354]
[1733001621452,0.21082041,96982.0,96981.0,0.13514657]
[1733001621663,0.21082041,96982.0,96981.0,0.36700529]
[1733001622100,0.21082041,96982.0,96981.0,0.37293144]
[1733001625752,0.21082041,96982.0,96981.0,0.14107272]
[1733001625980,0.21082041,96982.0,96981.0,0.13653555]
[1733001626191,0.21082041,96982.0,96981.0,0.14071124]
[1733001626607,0.0048642,96982.0,96981.0,0.14071124]
[1733001628182,0.0078642,96982.0,96981.0,0.14071124]
[1733001628605,0.0008642,96982.0,96981.0,0.14071124]
[1733001628810,0.0018642,96982.0,96981.0,0.14171124]
[1733001632466,0.1049752,96982.0,96981.0,0.14171124]
[1733001632669,0.00145433,96982.0,96981.0,0.14171124]
[1733001633328,0.10456533,96982.0,96981.0,0.14171124]
[1733001635073,0.10456533,96982.0,96981.0,0.09291124]
[1733001635705,0.10456533,96982.0,96981.0,0.01261124]
[1733001646816,0.10456533,96982.0,96981.0,0.09371124]
[1733001649379,0.10456533,96982.0,96981.0,0.08778509]
[1733001652833,0.10456533,96982.0,96981.0,0.09358094]
[1733001657184,0.00145433,96982.0,96981.0,0.09358094]
[1733001659053,0.10456533,96982.0,96981.0,0.09358094]
[1733001660645,0.00145433,96982.0,96981.0,0.09358094]
[1733001661069,0.10456533,96982.0,96981.0,0.09358094]
[1733001661724,0.00145433,96982.0,96981.0,0.09358094]
[1733001663917,0.103111,96983.0,96981.0,0.09358094]
[1733001664173,0.20595621,96983.0,96981.0,0.09358094]
[1733001664839,0.20595621,96983.0,96981.0,0.09258094]
[1733001665056,0.20595621,96983.0,96981.0,0.09358094]
[1733001665275,0.103111,96982.0,96981.0,0.09358094]
[1733001665920,0.103111,96982.0,96981.0,0.09258094]
[1733001666137,0.103111,96982.0,96981.0,0.09358094]
[1733001666340,0.103111,96982.0,96981.0,0.37183753]
[1733001667481,0.103111,96982.0,96981.0,0.37083753]
[1733001667936,0.103111,96982.0,96981.0,0.37283753]
[1733001673224,0.10284521,96983.0,96981.0,0.37283753]
[1733001673431,0.20595621,96983.0,96982.0,0.27846984]
[1733001673882,0.20595621,96983.0,96982.0,0.28294891]
[1733001674553,0.20695621,96983.0,96982.0,0.28294891]
[1733001674772,0.20595621,96983.0,96982.0,0.28294891]
[1733001675221,0.10384521,96983.0,96982.0,0.28394891]
[1733001675458,0.001,96983.0,96982.0,0.15629007]
[1733001675676,0.001728,96985.0,96984.0,0.103109]
[1733001675913,0.001728,96985.0,96984.0,0.185409]
[1733001676140,0.001728,96985.0,96984.0,0.18988923]
[1733001677925,0.001728,96985.0,96984.0,0.23928923]
[1733001678565,0.001728,96985.0,96984.0,0.24128923]
[1733001679145,0.001728,96985.0,96984.0,0.2480849]
[1733001680985,0.1031,96993.0,96987.0,0.103106]
[1733001681201,0.1031,96993.0,96988.0,0.00579543]
[1733001681409,0.0805,96994.0,96988.0,0.0102738]
[1733001681612,0.0805,96994.0,96989.0,0.00579537]
[1733001681789,0.103102,96992.0,96989.0,0.00579537]
[1733001682023,0.103102,96992.0,96990.0,0.00447744]
[1733001682228,0.10316145,96992.0,96991.0,0.00579525]
[1733001682640,0.10316145,96992.0,96991.0,0.01027222]
[1733001683270,0.10516145,96992.0,96991.0,0.01027222]
[1733001684528,0.10316145,96992.0,96991.0,0.01027222]
[1733001684931,0.10516145,96992.0,96991.0,0.01027222]
[1733001686286,0.10516145,96992.0,96991.0,0.01227222]
[1733001692794,0.20800666,96992.0,96991.0,0.01227222]
[1733001693434,0.20800666,96992.0,96991.0,0.2441055]
[1733001693651,0.20800666,96992.0,96991.0,0.01227222]
[1733001694083,0.20800666,96992.0,96991.0,0.00779525]
[1733001695601,0.20800666,96992.0,96991.0,0.00579525]
[1733001695826,0.20600666,96992.0,96991.0,0.00579525]
[1733001696044,0.20600666,96992.0,96991.0,0.00679525]
[1733001696254,0.20700666,96992.0,96991.0,0.00679525]
[1733001696463,0.20600666,96992.0,96991.0,0.00679525]
[1733001696670,0.20600666,96992.0,96991.0,0.00579525]
[1733001698764,0.20900666,96992.0,96991.0,0.00579525]
[1733001698975,0.20600666,96992.0,96991.0,0.00579525]
[1733001699412,0.20900666,96992.0,96991.0,0.00579525]
[1733001700265,0.20987086,96992.0,96991.0,0.00579525]
[1733001700499,0.103107,96986.0,96985.0,0.0017284]
[1733001700721,0.206212,96988.0,96985.0,0.0017284]
[1733001700939,0.20595121,96987.0,96986.0,0.00310102]
[1733001702032,0.20595121,96987.0,96986.0,0.00757586]
[1733001702721,0.20595121,96987.0,96986.0,0.00857586]
[1733001703131,0.20695121,96987.0,96986.0,0.00857586]
[1733001704528,0.20695121,96987.0,96986.0,0.00547484]
[1733001706220,0.20690008,96987.0,96986.0,0.00547484]
[1733001706682,0.25470008,96987.0,96986.0,0.00547484]
[1733001708023,0.20690008,96987.0,96986.0,0.0073193]
[1733001711655,0.20690008,96987.0,96986.0,0.00547484]
[1733001713787,0.20657123,96987.0,96986.0,0.00547484]
[1733001715141,0.20657123,96987.0,96986.0,0.00689564]
[1733001718699,0.20657123,96987.0,96986.0,0.00547484]
[1733001722237,0.20657123,96987.0,96986.0,0.00672407]
[1733001723159,0.25307123,96987.0,96986.0,0.00672407]
[1733001724039,0.25307123,96987.0,96986.0,0.23869941]
[1733001724470,0.25307123,96987.0,96986.0,0.00672407]
[1733001725746,0.25307123,96987.0,96986.0,0.00720324]
[1733001725961,0.33503543,96987.0,96986.0,0.00720324]
[1733001726863,0.34469368,96987.0,96986.0,0.00720324]
[1733001727319,0.34469368,96987.0,96986.0,0.0017284]
[1733001727545,0.34769368,96987.0,96986.0,0.0017284]
[1733001727805,0.35669368,96987.0,96986.0,0.0017284]
[1733001728017,0.34369368,96987.0,96986.0,0.0017284]
[1733001728474,0.35269368,96987.0,96986.0,0.0017284]
[1733001728701,0.35268799,96987.0,96986.0,0.0017284]
[1733001728922,0.34703543,96987.0,96986.0,0.0017284]
[1733001729370,0.34703543,96987.0,96986.0,0.00290742]
[1733001732806,0.34703543,96987.0,96986.0,0.0017284]
[1733001735435,0.26593543,96987.0,96986.0,0.0017284]
[1733001736106,0.26586733,96987.0,96986.0,0.0017284]
[1733001736369,0.26586733,96987.0,96986.0,0.00287965]
[1733001740044,0.26586733,96987.0,96986.0,0.0017284]
[1733001743390,0.26586733,96987.0,96986.0,0.00235227]
[1733001747056,0.26586733,96987.0,96986.0,0.0017284]
[1733001750599,0.28609463,96987.0,96986.0,0.00222661]
[1733001751047,0.23959463,96987.0,96986.0,0.00222661]
[1733001751199,0.21936733,96987.0,96986.0,0.00222661]
[1733001751647,0.21936733,96987.0,96986.0,0.0052976]
[1733001754118,0.21936733,96987.0,96986.0,0.00479939]
[1733001755932,0.21925803,96987.0,96986.0,0.00479939]
[1733001757891,0.21925803,96987.0,96986.0,0.00528566]
[1733001761309,0.21925803,96987.0,96986.0,0.00479939]
[1733001762226,0.21795803,96987.0,96986.0,0.00479939]
[1733001764852,0.21795803,96987.0,96986.0,0.00525901]
[1733001767747,0.21795803,96987.0,96986.0,0.14434573]
[1733001768447,0.21795803,96987.0,96986.0,0.14392834]
[1733001769582,0.21795803,96987.0,96986.0,0.00479939]
[1733001772074,0.21795803,96987.0,96986.0,0.00524799]
[1733001775627,0.21795803,96987.0,96986.0,0.00479939]
[1733001779188,0.21795803,96987.0,96986.0,0.00523724]
[1733001781548,0.17153046,96987.0,96986.0,0.00523724]
[1733001781770,0.17153046,96987.0,96986.0,0.19078947]
[1733001782263,0.17153046,96987.0,96986.0,0.00523724]
[1733001782769,0.17153046,96987.0,96986.0,0.19037488]
[1733001783946,0.17153046,96987.0,96986.0,0.19032432]
[1733001785430,0.17153046,96987.0,96986.0,0.00474883]
[1733001786148,0.17153046,96987.0,96986.0,0.00517618]
[1733001788472,0.17153046,96987.0,96986.0,0.19077312]
[1733001789817,0.17153046,96987.0,96986.0,0.19034577]
[1733001790518,0.17153046,96987.0,96986.0,0.08094883]
[1733001790970,0.1169702,96987.0,96986.0,0.12844883]
[1733001793298,0.1169702,96987.0,96986.0,0.12880203]
[1733001795525,0.1169702,96987.0,96986.0,0.08130203]
[1733001795968,0.1169702,96987.0,96986.0,0.07823104]
[1733001796186,0.1169702,96987.0,96986.0,0.08106673]
[1733001796661,0.1169702,96987.0,96986.0,0.31307315]
[1733001796883,0.1169702,96987.0,96986.0,0.31271995]
[1733001799339,0.21981541,96987.0,96986.0,0.00451353]
[1733001799797,0.21981541,96987.0,96986.0,0.19012136]
[1733001800029,0.26881541,96987.0,96986.0,0.19012136]
[1733001800265,0.26881541,96987.0,96986.0,0.00483553]
[1733001802135,0.26881541,96987.0,96986.0,0.00199984]
[1733001802362,0.26881541,96987.0,96986.0,0.0048342]
[1733001803982,0.26881541,96987.0,96986.0,0.0045122]
[1733001807416,0.26881541,96987.0,96986.0,0.00481621]
[1733001808986,0.26881541,96987.0,96985.0,1e-08]
[1733001808987,0.24370941,96987.0,96985.0,1e-08]
[1733001809217,0.25345221,96986.0,96985.0,1e-08]
[1733001810133,0.10311,96983.0,96982.0,1e-08]
[1733001810362,0.20595521,96983.0,96982.0,1e-08]
[1733001811988,0.21495521,96983.0,96982.0,1e-08]
[1733001812471,0.21995521,96983.0,96982.0,1e-08]
[1733001812699,0.26745521,96983.0,96982.0,1e-08]
[1733001816171,0.28819523,96983.0,96982.0,1e-08]
[1733001817505,0.36639523,96983.0,96982.0,1e-08]
[1733001821289,0.34565521,96983.0,96982.0,1e-08]
[1733001826987,0.3661805,96983.0,96982.0,1e-08]
[1733001829868,0.3661805,96983.0,96981.0,4.1e-07]
[1733001829869,0.2155705,96983.0,96981.0,4.1e-07]
[1733001830139,0.25365621,96982.0,96981.0,4.1e-07]
[1733001832339,0.25865621,96982.0,96981.0,4.1e-07]
[1733001832615,0.26765621,96982.0,96981.0,4.1e-07]
[1733001834396,0.26765621,96982.0,96981.0,0.00086461]
[1733001840107,0.28811436,96982.0,96981.0,0.00086461]
[1733001846124,0.26765621,96982.0,96981.0,0.00086461]
[1733001846552,0.26938481,96982.0,96981.0,0.00086461]
[1733001853319,0.29031497,96982.0,96981.0,0.00086461]
[1733001854673,0.32240781,96982.0,96981.0,0.00086461]
[1733001855107,0.29031497,96982.0,96981.0,0.00086461]
[1733001855991,0.32235615,96982.0,96981.0,0.00086461]
[1733001856199,0.30142599,96982.0,96981.0,0.00086461]
[1733001856416,0.26933231,96982.0,96981.0,0.00086461]
[1733001856629,0.30142589,96982.0,96981.0,0.00086461]
[1733001861826,0.103114,96980.0,96979.0,7.1e-07]
[1733001862032,0.103114,96980.0,96974.0,2.2e-07]
[1733001862033,0.618519,96975.0,96974.0,2.2e-07]
[1733001862245,0.75345779,96975.0,96974.0,2.2e-07]
[1733001862468,0.76311803,96975.0,96974.0,2.2e-07]
[1733001863148,0.85580795,96975.0,96974.0,2.2e-07]
[1733001863383,0.93630795,96975.0,96974.0,2.2e-07]
[1733001863644,0.76311803,96975.0,96974.0,2.2e-07]
[1733001863860,0.85581067,96975.0,96974.0,2.2e-07]
[1733001864132,0.87180577,96975.0,96974.0,2.2e-07]
[1733001864361,0.77911313,96975.0,96974.0,2.2e-07]
[1733001865050,0.82747707,96975.0,96974.0,2.2e-07]
[1733001867283,0.90797707,96975.0,96974.0,2.2e-07]
[1733001867564,0.82747707,96975.0,96974.0,2.2e-07]
[1733001868005,0.81747707,96975.0,96974.0,2.2e-07]
[1733001869306,0.78538349,96975.0,96974.0,2.2e-07]
[1733001869730,0.73701955,96975.0,96974.0,2.2e-07]
[1733001872134,0.75791787,96975.0,96974.0,2.2e-07]
[1733001873692,0.83841787,96975.0,96974.0,2.2e-07]
[1733001874816,0.83840473,96975.0,96974.0,2.2e-07]
[1733001875032,0.82876253,96975.0,96974.0,2.2e-07]
[1733001875259,0.83840471,96975.0,96974.0,2.2e-07]
[1733001876162,0.81750639,96975.0,96974.0,2.2e-07]
[1733001880839,0.81923499,96975.0,96974.0,2.2e-07]
[1733001881697,0.85628964,96975.0,96974.0,2.2e-07]
[1733001881921,0.103153,96943.0,96941.0,0.023]
[1733001882151,0.103156,96940.0,96938.0,0.023]
[1733001882380,0.103157,96939.0,96938.0,0.023]
[1733001882588,0.103158,96938.0,96937.0,0.023]
[1733001883263,0.103158,96938.0,96937.0,0.02359602]
[1733001885047,0.103158,96938.0,96937.0,0.14759602]
[1733001887665,0.103158,96938.0,96937.0,0.15059306]
[1733001892822,0.103158,96938.0,96937.0,0.15145766]
[1733001894766,0.20600321,96938.0,96937.0,0.33683822]
[1733001894996,0.20600321,96938.0,96937.0,0.10595766]
[1733001895216,0.20600321,96938.0,96937.0,0.2450015]
[1733001895866,0.20600321,96938.0,96937.0,0.02745766]
[1733001896314,0.20600321,96938.0,96937.0,0.00445766]
[1733001897508,0.10284521,96938.0,96937.0,0.00445766]
[1733001897714,0.20600321,96938.0,96937.0,0.00445766]
[1733001902087,0.20515223,96938.0,96937.0,0.00445766]
[1733001903247,0.20515223,96938.0,96937.0,0.13185766]
[1733001903669,0.20515223,96938.0,96937.0,0.08515766]
[1733001904796,0.20515223,96938.0,96937.0,0.00445766]
[1733001905186,0.20688143,96938.0,96937.0,0.00445766]
[1733001906487,0.20688143,96938.0,96937.0,0.1435751]
[1733001907143,0.20688143,96938.0,96937.0,0.00445766]
[1733001910349,0.20688143,96938.0,96937.0,0.14362785]
[1733001915439,0.20688143,96938.0,96937.0,0.14362127]
[1733001917975,0.20688143,96938.0,96937.0,0.00445766]
[1733001918214,0.20688143,96938.0,96937.0,0.14362219]
[1733001918626,0.22779049,96938.0,96937.0,0.14362219]
[1733001919474,0.22779049,96938.0,96937.0,0.00445766]
[1733001920759,0.22779049,96938.0,96937.0,0.14362219]
[1733001921429,0.20688143,96938.0,96937.0,0.14362219]
[1733001922328,0.20688143,96938.0,96937.0,0.00445766]
[1733001928147,0.21654185,96938.0,96937.0,0.00445766]
[1733001928635,0.21654185,96938.0,96937.0,0.00146062]
[1733001928863,0.21654185,96938.0,96937.0,0.00401828]
[1733001929062,0.21654185,96938.0,96937.0,0.00146062]
[1733001929322,0.21654185,96938.0,96937.0,0.00401828]
[1733001929552,0.21654185,96938.0,96937.0,0.00146062]
[1733001929782,0.21654185,96938.0,96937.0,0.00401828]
[1733001930029,0.21654185,96938.0,96937.0,0.00146062]
[1733001930280,0.21654185,96938.0,96937.0,0.00401828]
[1733001930508,0.21654185,96938.0,96937.0,0.00146062]
[1733001930743,0.21654185,96938.0,96937.0,0.00401828]
[1733001930994,0.21654185,96938.0,96937.0,0.00146062]
[1733001931238,0.21654185,96938.0,96937.0,0.00401828]
[1733001931466,0.21654185,96938.0,96937.0,0.00146062]
[1733001931700,0.21653966,96938.0,96937.0,0.00401828]
[1733001933372,0.21653966,96938.0,96937.0,0.00146062]
[1733001933918,0.21653966,96938.0,96937.0,0.00401828]
[1733001934151,0.21653966,96938.0,96937.0,0.00146062]
[1733001935576,0.21653966,96938.0,96937.0,0.00401828]
[1733001935795,0.21653966,96938.0,96937.0,0.00146062]
[1733001937901,0.21653966,96938.0,96937.0,0.00401828]
[1733001938143,0.21653966,96938.0,96937.0,0.00146062]
[1733001939036,0.21653678,96938.0,96937.0,0.00146062]
[1733001939682,0.23670739,96938.0,96937.0,0.00146062]
[1733001940415,0.36280739,96938.0,96937.0,0.00146062]
[1733001940661,0.36280739,96938.0,96937.0,0.00401828]
[1733001940889,0.36980739,96938.0,96937.0,0.00146062]
[1733001941131,0.35163678,96938.0,96937.0,0.00146062]
[1733001942566,0.34963678,96938.0,96937.0,0.00146062]
[1733001942796,0.35163678,96938.0,96937.0,0.00146062]
[1733001943476,0.27383678,96938.0,96937.0,0.00146062]
[1733001946158,0.273826,96938.0,96937.0,0.00146062]
[1733001947856,0.225526,96938.0,96937.0,0.00146062]
[1733001948329,0.24663086,96938.0,96937.0,0.00146062]
[1733001949373,0.23698629,96938.0,96937.0,0.00146062]
[1733001949829,0.21588143,96938.0,96937.0,0.02446062]
[1733001950031,0.21538217,96938.0,96937.0,0.02446062]
[1733001951583,0.21538217,96938.0,96937.0,0.02704207]
[1733001953153,0.1138872,96938.0,96937.0,0.02704207]
[1733001958169,0.1138872,96938.0,96937.0,0.15354207]
[1733001958639,0.1138872,96938.0,96937.0,0.33913485]
[1733001959299,0.1138872,96938.0,96937.0,0.15354207]
[1733001959706,0.1138872,96938.0,96937.0,0.29266803]
[1733001962880,0.1138872,96938.0,96937.0,0.15354207]
[1733001966617,0.0107292,96938.0,96937.0,0.15354207]
[1733001967481,0.0087292,96938.0,96937.0,0.15354207]
[1733001968057,0.0017292,96938.0,96937.0,0.15354207]
[1733001968255,0.0017292,96938.0,96937.0,0.25670107]
[1733001968742,0.0027292,96938.0,96937.0,0.53494681]
[1733001968963,0.0027292,96938.0,96937.0,0.25670107]
[1733001969175,0.0017292,96939.0,96938.0,0.412458]
[1733001969583,0.0017292,96939.0,96938.0,0.41502904]
[1733001970158,0.0017292,96939.0,96938.0,0.30187104]
[1733001970389,0.0017292,96939.0,96938.0,0.30387104]
[1733001970390,0.0027292,96939.0,96938.0,0.30387104]
[1733001971011,0.0027292,96939.0,96938.0,0.30323143]
[1733001971429,0.0027292,96939.0,96938.0,0.58109742]
[1733001971637,0.0027292,96939.0,96938.0,0.30323143]
[1733001972070,0.1058862,96939.0,96938.0,0.30323143]
[1733001973641,0.1058862,96939.0,96938.0,0.15323143]
[1733001973909,0.1058862,96939.0,96938.0,0.00457104]
[1733001974611,0.1048862,96939.0,96938.0,0.00257104]
[1733001975255,0.1048862,96939.0,96938.0,0.02557104]
[1733001976313,0.1048862,96939.0,96938.0,0.16446201]
[1733001978679,0.1058862,96939.0,96938.0,0.16446201]
[1733001978918,0.1058862,96939.0,96938.0,0.02557104]
[1733001978919,0.10503522,96939.0,96938.0,0.02557104]
[1733001979130,0.10503522,96939.0,96938.0,0.16445369]
[1733001979542,0.10503522,96939.0,96938.0,0.16444934]
[1733001980427,0.10503522,96939.0,96938.0,0.24384934]
[1733001980700,0.10503522,96939.0,96938.0,0.10497104]
[1733001981114,0.10503522,96939.0,96938.0,0.24384236]
[1733001981550,0.10403522,96939.0,96938.0,0.10497104]
[1733001981757,0.10403522,96939.0,96938.0,0.10597104]
[1733001981965,0.10403522,96939.0,96938.0,0.10697104]
[1733001982807,0.10403522,96939.0,96938.0,0.29211851]
[1733001983020,0.10403522,96939.0,96938.0,0.10697104]
[1733001984091,0.00087822,96939.0,96938.0,0.10697104]
[1733001984311,0.00087822,96939.0,96938.0,0.15597104]
[1733001984534,0.00087822,96939.0,96938.0,0.25912904]
[1733001984746,0.00087822,96939.0,96938.0,0.38738963]
[1733001984979,0.00087822,96939.0,96938.0,0.49054763]
[1733001985203,0.00087822,96939.0,96938.0,0.25912904]
[1733001985639,0.00087822,96939.0,96938.0,0.41912904]
[1733001985858,0.103144,96952.0,96947.0,0.023]
[1733001986069,0.206279,96956.0,96950.0,0.023]
[1733001986288,0.103144,96951.0,96950.0,0.023]
[1733001986759,0.206281,96955.0,96950.0,0.023]
[1733001986973,0.103142,96954.0,96950.0,0.023]
[1733001987228,0.206281,96955.0,96950.0,0.16183729]
[1733001987471,0.103142,96953.0,96950.0,0.16183729]
[1733001987785,0.0008642,96951.0,96950.0,0.16183729]
[1733001988189,0.1040082,96951.0,96950.0,0.16183729]
[1733001989334,0.0068642,96951.0,96950.0,0.16183729]
[1733001989981,0.0048642,96951.0,96950.0,0.20811639]
[1733001990194,0.0048642,96951.0,96950.0,0.31126139]
[1733001990421,0.0068642,96951.0,96949.0,0.023]
[1733001990640,0.0068642,96951.0,96949.0,0.126146]
[1733001990861,0.0028642,96951.0,96949.0,0.126146]
[1733001991084,0.0068642,96951.0,96949.0,0.023]
[1733001991353,0.0028642,96951.0,96950.0,0.126145]
[1733001991616,0.0028642,96951.0,96950.0,0.023]
[1733001991811,0.0028642,96951.0,96949.0,0.024]
[1733001992260,0.0008642,96951.0,96949.0,0.25540093]